lending/lending_fUSD_20241228
["ID","MTS","AMOUNT","RATE_DAILY","PERIOD"]
[346915208,1735373445952,-1587.53,0.000128,2]
[346915209,1735373445961,-594.43218781,0.00012999,3]
[346915210,1735373445970,-205.50792616,0.00012999,3]
[346915211,1735373445979,-11316.22588071,0.00012999,2]
[346915212,1735373445991,-2507.23557267,0.00012999,2]
[346915213,1735373446005,-602.80619902,0.00012999,2]
[346915214,1735373446015,-360.08234564,0.00012999,2]
[346915215,1735373446027,-5213.65000196,0.00012999,2]
[346915216,1735373446036,-154.669237,0.00012999,3]
[346915217,1735373446046,-154.936045,0.00012999,3]
[346915218,1735373446056,-235.847245,0.00012999,3]
[346915219,1735373446065,-746.696506,0.00012999,3]
[346915220,1735373446075,-156.115485,0.00012999,3]
[346915221,1735373446084,-157.374477,0.00012999,3]
[346915222,1735373446093,-518.42,0.00012999,2]
[346915223,1735373446102,-500.0,0.00012999,2]
[346915224,1735373446111,-500.0,0.00012999,2]
[346915225,1735373446120,-500.0,0.00012999,2]
[346915226,1735373446130,-500.0,0.00012999,2]
[346915227,1735373446138,-500.0,0.00012999,2]
[346915228,1735373446148,-500.0,0.00012999,2]
[346915229,1735373446157,-500.0,0.00012999,2]
[346915230,1735373446167,-500.0,0.00012999,2]
[346915231,1735373446176,-504.80320033,0.00012999,2]
[346915232,1735373446185,-150.16982984,0.00012999,2]
[346915233,1735373446194,-500.0,0.00012999,2]
[346915234,1735373446203,-500.0,0.00012999,2]
[346915235,1735373446213,-500.0,0.00012999,2]
[346915236,1735373446222,-500.0,0.00012999,2]
[346915237,1735373446231,-175.40715912,0.00012999,2]
[346915238,1735373446239,-504.9,0.00012999,2]
[346915239,1735373446249,-500.0,0.00012999,2]
[346915240,1735373446258,-2601.62,0.00012999,2]
[346915241,1735373446267,-500.0,0.00012999,2]
[346915242,1735373446276,-500.0,0.00012999,2]
[346915243,1735373446285,-500.0,0.00012999,2]
[346915244,1735373446294,-500.0,0.00012999,2]
[346915245,1735373446304,-500.0,0.00012999,2]
[346915246,1735373446313,-500.0,0.00012999,2]
[346915247,1735373446322,-1609.11,0.00012999,2]
[346915248,1735373446331,-535.32,0.00012999,2]
[346915249,1735373446341,-500.0,0.00012999,2]
[346915250,1735373446350,-752.97,0.00012999,2]
[346915251,1735373446359,-560.57,0.00012999,2]
[346915252,1735373446368,-500.0,0.00012999,2]
[346915253,1735373446377,-500.0,0.00012999,2]
[346915254,1735373446386,-500.0,0.00012999,2]
[346915255,1735373446395,-268.29787061,0.00012999,2]
[346915256,1735373446404,-500.0,0.00012999,2]
[346915257,1735373446413,-500.0,0.00012999,2]
[346915258,1735373446422,-564.62,0.00012999,2]
[346915260,1735373446433,-500.0,0.00012999,2]
[346915262,1735373446442,-500.0,0.00012999,2]
[346915263,1735373446451,-500.0,0.00012999,2]
[346915264,1735373446460,-500.0,0.00012999,2]
[346915265,1735373446469,-500.0,0.00012999,2]
[346915266,1735373446478,-500.0,0.00012999,2]
[346915267,1735373446486,-500.0,0.00012999,2]
[346915268,1735373446495,-343.93794118,0.00012999,2]
[346915269,1735373446506,-2921.3,0.00012999,2]
[346915270,1735373446515,-500.0,0.00012999,2]
[346915271,1735373446524,-334.40136118,0.00012999,2]
[346915272,1735373446532,-1449.83,0.00012999,2]
[346915273,1735373446541,-500.0,0.00012999,2]
[346915274,1735373446552,-500.0,0.00012999,2]
[346915275,1735373446561,-500.0,0.00012999,2]
[346915276,1735373446570,-500.0,0.00012999,2]
[346915277,1735373446579,-601.30284798,0.00012999,2]
[346915278,1735373446589,-1189.76,0.00012999,2]
[346915279,1735373446598,-500.0,0.00012999,2]
[346915280,1735373446607,-500.0,0.00012999,2]
[346915281,1735373446617,-500.0,0.00012999,2]
[346915282,1735373446626,-500.0,0.00012999,2]
[346915283,1735373446635,-758.75,0.00012999,2]
[346915284,1735373446645,-175.70097075,0.00012999,2]
[346915285,1735373446654,-500.0,0.00012999,2]
[346915286,1735373446665,-500.0,0.00012999,2]
[346915287,1735373446675,-1497.0,0.00013,2]
[346915288,1735373446684,-139733.6693371,0.00013,2]
[346915289,1735373446708,-15211.34549132,0.00013,2]
[346915290,1735373446720,-362.45027248,0.00013,2]
[346915291,1735373446735,-1143.45545584,0.00013,2]
[346915292,1735373446747,-3120.0000015,0.00013,2]
[346915293,1735373446759,-9432.91849387,0.00013,2]
[346915294,1735373446779,-280.81103182,0.00013,2]
[346915297,1735373715445,85500.72514126,9e-05,2]
[346915298,1735373730249,173026.59727027,9e-05,3]
[346915299,1735373781913,344963.25517179,9e-05,4]
[346915302,1735374008771,-171.61,0.00010137,2]
[346915303,1735374008793,-778.18059977,0.00011288,2]
[346915304,1735374043823,-396.9,0.00012026,2]
[346915305,1735374043846,-300.0,0.00012238,2]
[346915306,1735374043868,-28427.0,0.00012239,2]
[346915307,1735374043894,-382.09,0.00012363,2]
[346915308,1735374043915,-1047.81131644,0.0001274,2]
[346915309,1735374043940,-378.74,0.00012759,2]
[346915310,1735374043965,-374.57,0.00012759,2]
[346915311,1735374043985,-1885.09592875,0.00012768,2]
[346915312,1735374044009,-500.0,0.00012799,2]
[346915313,1735374044030,-500.0,0.00012799,2]
[346915314,1735374044052,-500.0,0.00012799,2]
[346915315,1735374044074,-500.0,0.00012799,2]
[346915316,1735374044097,-500.0,0.00012799,2]
[346915317,1735374044119,-537.22,0.00012799,2]
[346915318,1735374044139,-2799.58,0.00012799,2]
[346915319,1735374044160,-500.0,0.00012799,2]
[346915320,1735374044182,-262.03505209,0.00012799,2]
[346915321,1735374044203,-500.0,0.00012799,2]
[346915322,1735374044225,-500.0,0.00012799,2]
[346915323,1735374044250,-150.0,0.0001284,2]
[346915324,1735374044271,-935.17896,0.0001287,2]
[346915325,1735374044293,-1116.664,0.00012896,2]
[346915326,1735374044314,-336.3147,0.000129,2]
[346915327,1735374044338,-2803.4134,0.000129,2]
[346915328,1735374044359,-1283.6184,0.000129,2]
[346915329,1735374044380,-982.7962,0.000129,2]
[346915330,1735374044401,-1428.78,0.000129,2]
[346915331,1735374044422,-172.19204272,0.000129,2]
[346915332,1735374318431,6461.52207473,9.601e-05,2]
[346915391,1735374632132,-287.14,9.635e-05,2]
[346915393,1735374632144,-270.0,0.00011511,2]
[346915394,1735374632154,-150.0,0.00011688,2]
[346915395,1735374632165,-150.0,0.00011688,2]
[346915396,1735374632175,-150.0,0.00011688,2]
[346915397,1735374632185,-150.18295905,0.00011688,2]
[346915398,1735374632195,-150.0,0.00011688,2]
[346915399,1735374632204,-60.2597928,0.00011688,2]
[346915400,1735374632215,-89.7402072,0.00011688,2]
[346915401,1735374632225,-150.0,0.00011688,2]
[346915402,1735374632234,-150.0,0.00011742,2]
[346915403,1735374632244,-150.0,0.0001176,2]
[346915404,1735374632254,-150.0,0.00011796,2]
[346915405,1735374632264,-150.0,0.00011806,2]
[346915406,1735374632274,-150.0,0.00011832,2]
[346915407,1735374632283,-150.0,0.0001185,2]
[346915408,1735374632293,-287.14,0.00011899,2]
[346915409,1735374632302,-150.0,0.00011904,2]
[346915410,1735374632311,-150.0,0.00011904,2]
[346915411,1735374632320,-150.0,0.00011924,2]
[346915412,1735374632330,-150.0,0.00011958,2]
[346915413,1735374632339,-300.0,0.00011975,2]
[346915414,1735374632349,-150.0,0.00011976,2]
[346915415,1735374632361,-150.0,0.00012012,2]
[346915416,1735374632370,-286.34,0.00012033,2]
[346915417,1735374632379,-150.0,0.00012042,2]
[346915418,1735374632388,-150.0,0.00012048,2]
[346915419,1735374632398,-437.36,0.00012055,2]
[346915420,1735374632407,-151.76,0.00012055,2]
[346915421,1735374632416,-150.0,0.00012066,2]
[346915422,1735374632426,-530.1377928,0.00012067,2]
[346915423,1735374632438,-469.8622072,0.00012067,2]
[346915424,1735374632448,-372.13,0.000121,2]
[346915433,1735374632652,-437.36,0.000121,2]
[346915435,1735374632662,-150.0,0.00012121,2]
[346915437,1735374632672,-150.0,0.00012121,2]
[346915439,1735374632682,-82.12347281,0.00012121,2]
[346915441,1735374632700,-67.87652719,0.00012121,2]
[346915442,1735374632710,-250.0,0.00012121,2]
[346915443,1735374632719,-150.0,0.0001216,2]
[346915444,1735374632729,-150.0,0.00012175,2]
[346915445,1735374632739,-150.0,0.00012193,2]
[346915446,1735374632748,-771.17,0.000122,2]
[346915447,1735374632757,-437.36,0.000122,2]
[346915448,1735374632767,-771.17,0.000122,2]
[346915449,1735374632776,-437.36,0.000122,2]
[346915450,1735374632785,-771.17,0.000122,2]
[346915451,1735374632794,-437.36,0.000122,2]
[346915452,1735374632804,-378.68,0.00012205,2]
[346915453,1735374632813,-150.0,0.00012229,2]
[346915454,1735374632823,-377.94,0.0001226,2]
[346915455,1735374632832,-150.0,0.00012265,2]
[346915456,1735374632842,-150.0,0.00012278,2]
[346915457,1735374632851,-150.0,0.00012283,2]
[346915458,1735374632862,-150.0,0.00012337,2]
[346915459,1735374632871,-150.0,0.00012337,2]
[346915460,1735374632881,-387.456,0.0001235,2]
[346915461,1735374632890,-382.34,0.00012374,2]
[346915462,1735374632900,-150.0,0.00012391,2]
[346915463,1735374632910,-150.0,0.00012396,2]
[346915464,1735374632919,-150.0,0.00012409,2]
[346915465,1735374632928,-150.0,0.00012445,2]
[346915466,1735374632937,-150.0,0.00012481,2]
[346915467,1735374632947,-150.0,0.00012499,2]
[346915468,1735374632956,-150.0,0.00012514,2]
[346915469,1735374632966,-378.27,0.00012541,2]
[346915470,1735374632975,-150.0,0.00012553,2]
[346915471,1735374632984,-150.0,0.00012553,2]
[346915472,1735374632993,-150.0,0.00012553,2]
[346915473,1735374633002,-150.0,0.00012608,2]
[346915474,1735374633012,-150.0,0.00012626,2]
[346915475,1735374633021,-150.0,0.00012632,2]
[346915476,1735374633030,-1042.20376265,0.00012642,2]
[346915477,1735374633040,-150.0,0.00012662,2]
[346915478,1735374633051,-150.0,0.00012698,2]
[346915479,1735374633060,-150.0,0.00012716,2]
[346915480,1735374633070,-150.0,0.0001275,2]
[346915481,1735374633083,-150.0,0.0001277,2]
[346915482,1735374633093,-150.0,0.0001277,2]
[346915483,1735374633103,-500.0,0.00012799,2]
[346915484,1735374633114,-397.24371016,0.00012799,2]
[346915485,1735374633136,-102.75628984,0.00012799,2]
[346915486,1735374633146,-151.0,0.00012809,2]
[346915487,1735374633156,-150.0,0.00012824,2]
[346915488,1735374633166,-150.0,0.00012842,2]
[346915489,1735374633176,-150.0,0.00012868,2]
[346915490,1735374633185,-150.0,0.00012878,2]
[346915491,1735374633195,-270.48780477,0.00012899,2]
[346915492,1735374633204,-377.78,0.000129,2]
[346915493,1735374633214,-5977.77095728,0.000129,2]
[346915494,1735374633224,-1336.64726352,0.000129,2]
[346915495,1735374633235,-10330.0,0.000129,2]
[346915498,1735374638127,-9044.09131229,0.000129,2]
[346915499,1735374638137,-377.6,0.000129,2]
[346915500,1735374638147,-1285.9,0.000129,2]
[346915501,1735374638157,-413.17716964,0.000129,2]
[346915502,1735374638166,-4706.31708927,0.000129,2]
[346915503,1735374638175,-1027.9834512,0.000129,2]
[346915504,1735374638184,-3126.80561766,0.000129,2]
[346915505,1735374638193,-676.11566585,0.000129,2]
[346915506,1735374638203,-186.36290962,0.000129,2]
[346915507,1735374638212,-150.0,0.00012914,2]
[346915508,1735374638222,-150.0,0.00012932,2]
[346915509,1735374638231,-270.0,0.0001295,2]
[346915510,1735374638240,-278.54,0.00012958,2]
[346915511,1735374638250,-500.09,0.00012958,2]
[346915512,1735374638259,-932.75,0.00012958,2]
[346915513,1735374638269,-500.0,0.00012958,2]
[346915514,1735374638278,-32221.0,0.00012959,2]
[346915515,1735374638287,-400.0,0.0001297,2]
[346915516,1735374638297,-500.0,0.00012973,2]
[346915517,1735374638307,-150.0,0.00012986,2]
[346915518,1735374638317,-150.0,0.00012986,2]
[346915519,1735374638326,-150.0,0.00012986,2]
[346915520,1735374638335,-150.0,0.00012986,2]
[346915521,1735374638344,-500.0,0.00012994,2]
[346915522,1735374638354,-1542.06,0.00012994,2]
[346915523,1735374638363,-357.2810845,0.00012994,2]
[346915524,1735374638372,-141.41494922,0.00012994,2]
[346915525,1735374638386,-358.58505078,0.00012994,2]
[346915526,1735374638395,-727.13,0.00012996,2]
[346915527,1735374638404,-500.0,0.00012996,2]
[346915529,1735374638414,-513.01,0.00012996,2]
[346915530,1735374638423,-500.0,0.00012996,2]
[346915532,1735374638432,-500.0,0.00012996,2]
[346915534,1735374638441,-500.0,0.00012996,2]
[346915535,1735374638451,-1140.18,0.00012999,2]
[346915536,1735374638460,-565.64,0.00012999,2]
[346915537,1735374638469,-500.0,0.00012999,2]
[346915538,1735374638479,-500.0,0.00012999,2]
[346915539,1735374638488,-500.0,0.00012999,2]
[346915540,1735374638497,-500.0,0.00012999,2]
[346915541,1735374638507,-500.0,0.00012999,2]
[346915542,1735374638517,-500.0,0.00012999,2]
[346915543,1735374638526,-500.0,0.00012999,2]
[346915544,1735374638536,-868.13,0.00012999,2]
[346915545,1735374638546,-673.23,0.00012999,2]
[346915546,1735374638556,-500.0,0.00012999,2]
[346915547,1735374638565,-500.0,0.00012999,2]
[346915548,1735374638574,-1574.34,0.00012999,2]
[346915549,1735374638583,-142.91517759,0.00012999,2]
[346915551,1735374638595,-357.08482241,0.00012999,2]
[346915553,1735374638604,-500.0,0.00012999,2]
[346915554,1735374638613,-139.08470444,0.00012999,2]
[346915555,1735374638624,-495.63835876,0.00012999,2]
[346915556,1735374638634,-500.0,0.00012999,2]
[346915557,1735374638642,-500.0,0.00012999,2]
[346915558,1735374638651,-500.0,0.00012999,2]
[346915559,1735374638660,-514.83,0.00012999,2]
[346915560,1735374638668,-410.03164124,0.00012999,2]
[346915561,1735374638680,-89.96835876,0.00012999,2]
[346915562,1735374638689,-500.0,0.00012999,2]
[346915563,1735374638698,-721.59,0.00012999,2]
[346915564,1735374638706,-500.0,0.00012999,2]
[346915565,1735374638715,-500.0,0.00012999,2]
[346915566,1735374638724,-500.0,0.00012999,2]
[346915567,1735374638734,-500.0,0.00012999,2]
[346915568,1735374638743,-500.0,0.00012999,2]
[346915569,1735374638752,-500.0,0.00012999,2]
[346915570,1735374638763,-500.0,0.00012999,2]
[346915571,1735374638772,-500.0,0.00012999,2]
[346915572,1735374638785,-2682.93,0.00012999,2]
[346915573,1735374638795,-344.14709074,0.00012999,2]
[346915574,1735374638804,-500.0,0.00012999,2]
[346915575,1735374638814,-1389.42,0.00012999,2]
[346915576,1735374638823,-2493.22,0.00012999,2]
[346915578,1735374638832,-500.0,0.00012999,2]
[346915579,1735374638841,-500.0,0.00012999,2]
[346915581,1735374638851,-500.0,0.00012999,2]
[346915583,1735374638860,-500.0,0.00012999,2]
[346915584,1735374638870,-500.0,0.00012999,2]
[346915585,1735374638879,-23995.03388145,0.00013,2]
[346915586,1735374638891,-3665.26420546,0.00013,2]
[346915587,1735374638902,-8209.09879246,0.00013,2]
[346915588,1735374638920,-3836.17980749,0.00013,2]
[346915589,1735374638932,-2753.91703957,0.00013,2]
[346915590,1735374638944,-824.92520841,0.00013,2]
[346915591,1735374638956,-697.00741091,0.00013,2]
[346915592,1735374638975,-630.76,0.00013,2]
[346915618,1735374640328,-17805.91915113,0.00013,2]
[346915620,1735374640339,-16118.9651833,0.00013,2]
[346915622,1735374640356,-158477.92931982,0.00013,2]
[346915624,1735374640366,-1296.0,0.00013,2]
[346915626,1735374640375,-139877.90253701,0.00013,2]
[346915628,1735374640386,-3401302.02209547,0.00013,2]
[346915630,1735374640397,-2263.41957,0.00013,2]
[346915632,1735374640408,-1526.265,0.00013,2]
[346915633,1735374640419,-22545.2795236,0.00013,2]
[346915635,1735374640430,-3794.95463155,0.00013,2]
[346915637,1735374640441,-326.19059615,0.00013,2]
[346915675,1735374643110,-696.83,0.00012999,2]
[346915677,1735374643119,-102053.17,0.00013,2]
[346915678,1735374643327,-365.499997,0.00013,2]
[346915685,1735374643755,-4913.15181181,0.00013,2]
[346915686,1735374643767,-698.384581,0.00013,2]
[346915687,1735374643777,-3371.0,0.00013,2]
[346915694,1735374646108,-1213.0,0.00013,2]
[346915695,1735374646119,-372.86,0.00013,2]
[346915696,1735374646129,-9350.3327267,0.00013,2]
[346915697,1735374646141,-1890.33073711,0.00013,2]
[346915698,1735374646269,-51337.47508032,0.00013,2]
[346915699,1735374646281,-165105.5971982,0.00013,2]
[346915700,1735374646380,-232972.34287716,0.00013,2]
[346915701,1735374646438,-3669.36124289,0.00013,2]
[346915702,1735374646550,-7297.18150784,0.00013,2]
[346915703,1735374738763,-152.378104,0.00012999,8]
[346915704,1735374738786,-156.60337,0.00012999,8]
[346915705,1735374738808,-156.60337,0.00012999,8]
[346915706,1735374738830,-156.60337,0.00012999,8]
[346915707,1735374739051,-152.378104,0.00012999,8]
[346915708,1735374739073,-152.378104,0.00012999,8]
[346915709,1735374739094,-152.378104,0.00012999,8]
[346915710,1735374739116,-156.60337,0.00012999,8]
[346915712,1735374903147,200.0,0.000105,30]
[346915713,1735374909027,-521.76,0.00012046,2]
[346915714,1735374909048,-750.17897989,0.00012132,2]
[346915715,1735374909070,-166.66666667,0.00012482,2]
[346915716,1735374909091,-152.378104,0.00012582,2]
[346915717,1735374909113,-181.16092209,0.00012622,2]
[346915718,1735374909136,-156.60337,0.00012722,2]
[346915719,1735374909162,-152.378104,0.00012722,2]
[346915720,1735374909186,-1131.5987799,0.00012739,2]
[346915721,1735374909210,-1002.7030437,0.0001274,2]
[346915722,1735374909234,-210.61948922,0.00012769,2]
[346915723,1735374909261,-382.25,0.00012799,2]
[346915724,1735374909283,-500.0,0.00012799,2]
[346915725,1735374909308,-152.378104,0.0001285,3]
[346915726,1735374909330,-156.60337,0.00012861,2]
[346915727,1735374909354,-152.378104,0.00012861,2]
[346915728,1735374909606,-156.60337,0.00012861,2]
[346915729,1735374909628,-181.16092209,0.0001287,2]
[346915730,1735374909651,-300.0,0.00012899,2]
[346915731,1735374909672,-156.60337,0.000129,3]
[346915732,1735374909694,-563.27411597,0.000129,2]
[346915733,1735374909715,-152.378104,0.000129,3]
[346915734,1735374909736,-743.8883,0.000129,2]
[346915735,1735374909756,-1447.6891,0.000129,2]
[346915736,1735374909777,-1000.0,0.000129,2]
[346915737,1735374909798,-2220.9497,0.000129,2]
[346915738,1735374909818,-156.60337,0.00012949,3]
[346915739,1735374909839,-152.378104,0.00012949,3]
[346915740,1735374909861,-500.0,0.00012958,2]
[346915741,1735374909881,-500.0,0.00012958,2]
[346915742,1735374909902,-500.0,0.00012958,2]
[346915743,1735374909922,-500.0,0.00012958,2]
[346915744,1735374909943,-500.0,0.00012958,2]
[346915745,1735374909963,-502.48771671,0.00012958,2]
[346915746,1735374909984,-501.88375643,0.00012958,2]
[346915747,1735374910004,-506.24231072,0.00012958,2]
[346915748,1735374910024,-500.0,0.00012958,2]
[346915749,1735374910045,-500.0,0.00012958,2]
[346915750,1735374910065,-500.0,0.00012958,2]
[346915751,1735374910086,-500.0,0.00012958,2]
[346915752,1735374910106,-500.5229721,0.00012958,2]
[346915753,1735374910126,-500.0,0.00012958,2]
[346915754,1735374910147,-505.69940025,0.00012958,2]
[346915755,1735374910168,-399.4729345,0.00012958,2]
[346915756,1735374910191,-506.16049695,0.00012958,2]
[346915757,1735374910213,-503.78826857,0.00012958,2]
[346915758,1735374910234,-500.0,0.00012958,2]
[346915759,1735374910256,-613.26919606,0.00012958,2]
[346915760,1735374910279,-500.0,0.00012958,2]
[346915761,1735374910302,-504.11539044,0.00012958,2]
[346915762,1735374910325,-504.10230708,0.00012958,2]
[346915763,1735374910349,-614.61226096,0.00012958,2]
[346915764,1735374910371,-507.25796275,0.00012958,2]
[346915765,1735374910391,-500.0,0.00012958,2]
[346915766,1735374910412,-504.71743125,0.00012958,2]
[346915767,1735374910432,-500.0,0.00012958,2]
[346915768,1735374910454,-500.0,0.00012958,2]
[346915769,1735374910475,-504.35864698,0.00012958,2]
[346915770,1735374910495,-202.32395614,0.00012958,2]
[346915771,1735374910516,-500.0,0.00012958,2]
[346915772,1735374910537,-503.62575326,0.00012958,2]
[346915773,1735374910561,-500.0,0.00012958,2]
[346915774,1735374910584,-500.0,0.00012958,2]
[346915775,1735374910605,-503.93827471,0.00012958,2]
[346915776,1735374910629,-500.0,0.00012958,2]
[346915777,1735374910649,-505.52464726,0.00012958,2]
[346915778,1735374910670,-502.41848466,0.00012958,2]
[346915779,1735374910692,-502.95438002,0.00012958,2]
[346915780,1735374910714,-498.21078547,0.00012958,2]
[346915781,1735374910735,-500.0,0.00012958,2]
[346915782,1735374910757,-568.09,0.00012958,2]
[346915783,1735374910779,-500.0,0.00012958,2]
[346915784,1735374910802,-501.41525059,0.00012958,2]
[346915785,1735374910825,-691.53,0.00012958,2]
[346915786,1735374910844,-502.18966623,0.00012958,2]
[346915787,1735374910866,-629.90799101,0.00012958,2]
[346915788,1735374910887,-500.0,0.00012958,2]
[346915789,1735374910909,-504.45773895,0.00012958,2]
[346915790,1735374910932,-222.38920794,0.00012958,2]
[346915791,1735374910956,-500.0,0.00012958,2]
[346915792,1735374910977,-503.48855271,0.00012958,2]
[346915793,1735374910998,-500.0,0.00012958,2]
[346915794,1735374911018,-500.0,0.00012958,2]
[346915795,1735374911038,-500.0,0.00012958,2]
[346915796,1735374911059,-500.0,0.00012958,2]
[346915797,1735374911082,-500.0,0.00012958,2]
[346915798,1735374911105,-1331.53,0.00012958,2]
[346915799,1735374911126,-500.0,0.00012958,2]
[346915800,1735374911146,-500.0,0.00012958,2]
[346915801,1735374911166,-500.0,0.00012958,2]
[346915802,1735374911189,-500.0,0.00012958,2]
[346915803,1735374911211,-667.8,0.00012958,2]
[346915804,1735374911233,-1092.68,0.00012958,2]
[346915805,1735374911255,-500.0,0.00012958,2]
[346915806,1735374911275,-6297.3338159,0.00012958,2]
[346915807,1735374911297,-400.0,0.0001297,2]
[346915808,1735374911319,-500.0,0.00012973,2]
[346915809,1735374911340,-297.734237,0.00012996,2]
[346915810,1735374911360,-938.6210812,0.00012996,2]
[346915811,1735374911381,-152.378104,0.00012999,3]
[346915812,1735374911402,-156.60337,0.00012999,3]
[346915813,1735374911422,-500.0,0.00012999,2]
[346915814,1735374911444,-500.0,0.00012999,2]
[346915815,1735374911464,-512.28940469,0.00012999,2]
[346915816,1735374911486,-501.62741425,0.00012999,2]
[346915817,1735374911510,-500.0,0.00012999,2]
[346915818,1735374911532,-500.0,0.00012999,2]
[346915819,1735374911554,-500.0,0.00012999,2]
[346915820,1735374911577,-500.0,0.00012999,2]
[346915821,1735374911599,-500.0,0.00012999,2]
[346915822,1735374911620,-501.2178383,0.00012999,2]
[346915823,1735374911642,-500.0,0.00012999,2]
[346915824,1735374911666,-500.0,0.00012999,2]
[346915825,1735374911688,-500.0,0.00012999,2]
[346915826,1735374911710,-500.0,0.00012999,2]
[346915827,1735374911731,-361.62526551,0.00012999,2]
[346915828,1735374911756,-2389.34,0.00012999,2]
[346915829,1735374911777,-500.0,0.00012999,2]
[346915830,1735374911797,-500.0,0.00012999,2]
[346915831,1735374911819,-500.0,0.00012999,2]
[346915832,1735374911840,-152.378104,0.00012999,3]
[346915833,1735374911862,-500.0,0.00012999,2]
[346915834,1735374911883,-156.60337,0.00012999,3]
[346915835,1735374911903,-502.00219282,0.00012999,2]
[346915836,1735374911924,-500.0,0.00012999,2]
[346915837,1735374911945,-504.98424451,0.00012999,2]
[346915838,1735374911966,-502.54896531,0.00012999,2]
[346915839,1735374911987,-500.0,0.00012999,2]
[346915840,1735374912008,-502.14582892,0.00012999,2]
[346915841,1735374912028,-504.88152124,0.00012999,2]
[346915842,1735374912049,-500.0,0.00012999,2]
[346915843,1735374912070,-500.0,0.00012999,2]
[346915844,1735374912092,-500.0,0.00012999,2]
[346915845,1735374912112,-642.51,0.00012999,2]
[346915846,1735374912133,-500.0,0.00012999,2]
[346915847,1735374912155,-500.0,0.00012999,2]
[346915848,1735374912176,-502.50210942,0.00012999,2]
[346915849,1735374912202,-501.83697328,0.00012999,2]
[346915850,1735374912225,-501.92763185,0.00012999,2]
[346915851,1735374912246,-500.0,0.00012999,2]
[346915852,1735374912267,-500.0,0.00012999,2]
[346915853,1735374912288,-500.0,0.00012999,2]
[346915854,1735374912309,-1477.81,0.00012999,2]
[346915855,1735374912331,-500.0,0.00012999,2]
[346915856,1735374912353,-500.0,0.00012999,2]
[346915857,1735374912375,-500.0,0.00012999,2]
[346915858,1735374912395,-1098.0,0.00013,2]
[346915859,1735374912419,-216456.1026776,0.00013,2]
[346915860,1735374912441,-2222244.55640859,0.00013,2]
[346915861,1735374912461,-41796.32838382,0.00013,2]
[346915862,1735374912483,-428675.4798776,0.00013,2]
[346915863,1735374912503,-146575.08182487,0.00013,2]
[346915864,1735374912525,-816.85248455,0.00013,2]
[346915865,1735374912559,-10849759.62907768,0.00013,2]
[346915866,1735374912584,-4226.90392718,0.00013,2]
[346915867,1735374912606,-8107275.81263168,0.00013,2]
[346915868,1735375097677,-5562.0,0.000127,5]
[346915870,1735375481986,43355.9744249,2.6e-05,20]
[346915920,1735375832376,-458.93,9.922e-05,2]
[346915921,1735375832385,-834.24365798,0.000109,2]
[346915922,1735375832394,-3513.5124121,0.00011,2]
[346915923,1735375832403,-300.0,0.00011295,2]
[346915924,1735375832412,-2156.87725738,0.00011296,2]
[346915925,1735375832421,-1165.56924156,0.00011296,2]
[346915926,1735375832430,-1165.56924156,0.00011296,2]
[346915927,1735375832440,-1165.56924156,0.00011296,2]
[346915928,1735375832449,-1165.56924156,0.00011296,2]
[346915929,1735375832458,-1165.56924156,0.00011296,2]